[Event "Seniors-LEM-50 Sachsen-Anhalt 2024"]
[Site "Magdeburg"]
[Date "2024.07.07"]
[Round "7.11"]
[White "Schiller, Dirk"]
[Black "Schoknecht, Sabine"]
[Result "1/2-1/2"]
[ECO "B06"]
[WhiteElo "1885"]
[BlackElo "1836"]
[Annotator "NA RC"]
[PlyCount "75"]
[EventDate "2024.06.25"]
[EventType "swiss"]
[EventCountry "GER"]
[SourceTitle "playchess.com"]
[Source "ChessBase"]
[SourceQuality "1"]
[TimeControl "40/5400+30:1800+30"]

1. e4 {[%emt 0:00:14]} g6 {[%emt 0:00:16]} 2. d4 {[%emt 0:01:09]} Bg7 {[%emt 0:00:23]} 3. c3 {[%emt 0:00:44]} d6 {[%emt 0:00:35]} 4. Be3 {[%emt 0:00:58]} Nf6 {[%emt 0:00:29]} 5. Nd2 {[%emt 0:00:53]} Nc6 {[%emt 0:02:14]} 6. Ngf3 {[%emt 0:00:48]} Ng4 {[%emt 0:01:08]} 7. Bf4 {[%emt 0:01:12]} h6 {[%emt 0:02:54]} 8. h3 {[%emt 0:00:39]} g5 {[%emt 0:01:52]} 9. Bg3 {[%emt 0:01:41]} Nf6 {[%emt 0:00:26]} 10. d5 {[%emt 0:01:02]} Nb8 {[%emt 0:00:57]} 11. Nd4 {[%emt 0:02:22]} Bd7 {[%emt 0:00:55]} 12. Bc4 {[%emt 0:01:20]} c5 {[%emt 0:02:35]} 13. dxc6 {[%emt 0:02:05]} Nxc6 {[%emt 0:00:19]} 14. Nf5 {[%emt 0:02:53]} O-O {[%emt 0:02:55]} 15. Qf3 {[%emt 0:04:46]} Ne5 {[%emt 0:10:08]} 16. Bxe5 {[%emt 0:00:34]} dxe5 {[%emt 0:00:16]} 17. O-O-O {[%emt 0:00:46]} e6 {[%emt 0:02:28]} 18. Nxg7 {[%emt 0:01:25]} Kxg7 {[%emt 0:00:13]} 19. g4 {[%emt 0:00:13]} Qc7 {[%emt 0:00:44]} 20. h4 {[%emt 0:02:54]} Bc6 {[%emt 0:02:48]} 21. Bd3 {[%emt 0:01:33]} Rad8 {[%emt 0:08:25]} 22. Qe2 {[%emt 0:02:01]} a6 {[%emt 0:04:44]} 23. f3 {[%emt 0:01:04]} b5 {[%emt 0:02:50]} 24. hxg5 {[%emt 0:00:33]} hxg5 {[%emt 0:00:13]} 25. Rh2 {[%emt 0:00:42]} Rh8 {[%emt 0:00:30]} 26. Rxh8 {[%emt 0:01:10]} Rxh8 {[%emt 0:00:11]} 27. Qe3 {[%emt 0:00:43]} Kg6 {[%emt 0:04:15]} 28. Kb1 {[%emt 0:03:23]} Qd8 {[%emt 0:05:24]} 29. Nf1 {[%emt 0:03:06]} Rh3 {[%emt 0:01:13]} 30. Be2 {[%emt 0:01:40]} Qa8 {[%emt 0:01:23]} 31. Qf2 {[%emt 0:02:18]} Qb8 {[%emt 0:05:25]} 32. Qg2 {[%emt 0:03:40]} Rh8 {[%emt 0:00:18]} 33. Ng3 {[%emt 0:01:07]} Qb7 {[%emt 0:04:16]} 34. Bd3 {[%emt 0:02:15]} Qb6 {[%emt 0:02:19]} 35. Bc2 {[%emt 0:03:39]} a5 {[%emt 0:02:26]} 36. Rg1 {[%emt 0:04:51]} Qc5 {[%emt 0:01:02]} 37. Nf5 {[%emt 0:02:33]} Qa7 {[%emt 0:06:23]} 38. Ng3 {[%emt 0:02:16]} 1/2-1/2

[Event "Seniors-LEM-50 Sachsen-Anhalt 2024"]
[Site "Magdeburg"]
[Date "2024.07.07"]
[Round "7.12"]
[White "Wahrenberg, Ralf"]
[Black "Bachmann, Sylvia"]
[Result "1-0"]
[ECO "E95"]
[WhiteElo "1873"]
[BlackElo "1768"]
[Annotator "NA RC"]
[PlyCount "81"]
[EventDate "2024.06.25"]
[EventType "swiss"]
[EventCountry "GER"]
[SourceTitle "playchess.com"]
[Source "ChessBase"]
[SourceQuality "1"]
[TimeControl "40/5400+30:1800+30"]

1. d4 {[%emt 0:00:02]} Nf6 {[%emt 0:00:09]} 2. Nf3 {[%emt 0:00:07]} g6 {[%emt 0:00:15]} 3. c4 {[%emt 0:00:10]} d6 {[%emt 0:00:17]} 4. Nc3 {[%emt 0:00:06]} Bg7 {[%emt 0:00:06]} 5. e4 {[%emt 0:00:05]} O-O {[%emt 0:00:13]} 6. Be2 {[%emt 0:00:21]} e5 {[%emt 0:06:06]} 7. O-O {[%emt 0:03:09]} Nbd7 {[%emt 0:05:51]} 8. Re1 {[%emt 0:00:56]} b6 {[%emt 0:01:08]} 9. d5 {[%emt 0:10:39]} h6 {[%emt 0:01:57]} 10. Bf1 {[%emt 0:01:00]} Ne8 {[%emt 0:02:01]} 11. Nd2 {[%emt 0:06:37]} f5 {[%emt 0:01:26]} 12. f3 {[%emt 0:01:22]} f4 {[%emt 0:00:18]} 13. b4 {[%emt 0:03:10]} Qg5 {[%emt 0:05:09]} 14. Nb3 {[%emt 0:05:16]} h5 {[%emt 0:00:41]} 15. Qe2 {[%emt 0:06:35]} h4 {[%emt 0:01:52]} 16. h3 {[%emt 0:03:38]} Ndf6 {[%emt 0:00:35]} 17. Kh1 {[%emt 0:02:03]} Nh5 {[%emt 0:01:44]} 18. Qd3 {[%emt 0:00:49]} Nef6 {[%emt 0:04:59]} 19. Bd2 {[%emt 0:01:24]} Qg3 {[%emt 0:05:05]} 20. Rec1 {[%emt 0:02:58]} Qg5 {[%emt 0:01:25]} 21. c5 {[%emt 0:04:31]} bxc5 {[%emt 0:03:31]} 22. bxc5 {[%emt 0:00:22]} a5 {[%emt 0:03:25]} 23. a4 {[%emt 0:05:19]} Ng3+ {[%emt 0:05:53]} 24. Kg1 {[%emt 0:03:38]} Bxh3 {[%emt 0:13:44]} 25. Be1 {[%emt 0:14:32]} Bd7 {[%emt 0:03:54]} 26. Bxg3 {[%emt 0:12:41]} hxg3 {[%emt 0:01:39]} 27. Qd1 {[%emt 0:10:21]} Qh4 {[%emt 0:03:04]} 28. Bb5 {[%emt 0:00:04]} Qh2+ {[%emt 0:00:47]} 29. Kf1 {[%emt 0:00:01]} Qh1+ {[%emt 0:02:16]} 30. Ke2 {[%emt 0:00:02]} Qxg2+ {[%emt 0:00:57]} 31. Kd3 {[%emt 0:00:02]} Kf7 {[%emt 0:04:20]} 32. cxd6 {[%emt 0:01:23]} cxd6 {[%emt 0:00:26]} 33. Rc2 {[%emt 0:01:04]} Qh3 {[%emt 0:00:07]} 34. Bxd7 {[%emt 0:00:46]} Qxd7 {[%emt 0:01:44]} 35. Nb5 {[%emt 0:00:07]} Rfc8 {[%emt 0:03:26]} 36. Rac1 {[%emt 0:00:16]} Ne8 {[%emt 0:03:00]} 37. Rxc8 {[%emt 0:01:39]} Rxc8 {[%emt 0:00:19]} 38. Nxa5 {[%emt 0:00:14]} Rc5 {[%emt 0:04:37]} 39. Nc6 {[%emt 0:00:43]} Bf8 {[%emt 0:05:32]} 40. Rxc5 {[%emt 0:01:05]} dxc5 {[%emt 0:00:09]} 41. Nxe5+ {[%emt 0:02:13]} 1-0

[Event "Seniors-LEM-50 Sachsen-Anhalt 2024"]
[Site "Magdeburg"]
[Date "2024.07.07"]
[Round "7.14"]
[White "Giesenberg, Angela"]
[Black "Langner, Hans-Rainer"]
[Result "1-0"]
[ECO "A07"]
[WhiteElo "1827"]
[BlackElo "1730"]
[Annotator "NA RC"]
[PlyCount "87"]
[EventDate "2024.06.25"]
[EventType "swiss"]
[EventCountry "GER"]
[SourceTitle "playchess.com"]
[Source "ChessBase"]
[SourceQuality "1"]
[TimeControl "40/5400+30:1800+30"]

1. Nf3 {[%emt 0:00:04]} d5 {[%emt 0:02:07]} 2. d3 {[%emt 0:00:09]} Nc6 {[%emt 0:00:31]} 3. g3 {[%emt 0:00:26]} e5 {[%emt 0:01:11]} 4. Nc3 {[%emt 0:02:05]} Be6 {[%emt 0:00:41]} 5. Bg2 {[%emt 0:02:32]} Bb4 {[%emt 0:00:47]} 6. Bd2 {[%emt 0:00:49]} d4 {[%emt 0:01:06]} 7. Ne4 {[%emt 0:01:52]} Bxd2+ {[%emt 0:00:35]} 8. Qxd2 {[%emt 0:00:15]} Nf6 {[%emt 0:04:40]} 9. Nc5 {[%emt 0:04:41]} Qc8 {[%emt 0:01:20]} 10. O-O {[%emt 0:01:41]} Bh3 {[%emt 0:03:32]} 11. Qg5 {[%emt 0:05:42]} Bxg2 {[%emt 0:07:30]} 12. Kxg2 {[%emt 0:00:43]} Qg4 {[%emt 0:03:29]} 13. Qxg4 {[%emt 0:07:27]} Nxg4 {[%emt 0:00:33]} 14. h3 {[%emt 0:02:04]} Nf6 {[%emt 0:00:43]} 15. e3 {[%emt 0:02:12]} dxe3 {[%emt 0:02:43]} 16. fxe3 {[%emt 0:00:44]} b6 {[%emt 0:01:21]} 17. Nb3 {[%emt 0:05:31]} Nd5 {[%emt 0:03:48]} 18. Rae1 {[%emt 0:03:37]} Ndb4 {[%emt 0:01:38]} 19. c3 {[%emt 0:00:33]} Nxd3 {[%emt 0:00:46]} 20. Re2 {[%emt 0:03:07]} Rd8 {[%emt 0:02:12]} 21. Rd2 {[%emt 0:05:15]} f6 {[%emt 0:01:20]} 22. e4 {[%emt 0:01:58]} Ke7 {[%emt 0:05:39]} 23. Nh4 {[%emt 0:05:25]} g6 {[%emt 0:05:53]} 24. Kg1 {[%emt 0:01:57]} a5 {[%emt 0:03:44]} 25. a4 {[%emt 0:01:10]} Rd6 {[%emt 0:00:33]} 26. Ng2 {[%emt 0:09:12]} Nb8 {[%emt 0:03:21]} 27. Ne3 {[%emt 0:00:43]} Na6 {[%emt 0:00:28]} 28. Nd5+ {[%emt 0:00:25]} Kf7 {[%emt 0:01:06]} 29. Rxd3 {[%emt 0:06:28]} c6 {[%emt 0:01:02]} 30. Nb4 {[%emt 0:02:14]} Rxd3 {[%emt 0:01:55]} 31. Nxd3 {[%emt 0:00:05]} Rd8 {[%emt 0:00:11]} 32. Rf3 {[%emt 0:03:24]} Ke6 {[%emt 0:01:03]} 33. g4 {[%emt 0:04:24]} h6 {[%emt 0:00:49]} 34. Nd2 {[%emt 0:02:25]} c5 {[%emt 0:00:56]} 35. Nc4 {[%emt 0:00:22]} Rb8 {[%emt 0:01:03]} 36. Ne3 {[%emt 0:00:31]} b5 {[%emt 0:01:19]} 37. axb5 {[%emt 0:01:01]} Rxb5 {[%emt 0:00:29]} 38. Nd5 {[%emt 0:00:43]} f5 {[%emt 0:01:24]} 39. gxf5+ {[%emt 0:00:11]} gxf5 {[%emt 0:00:23]} 40. Rxf5 {[%emt 0:00:40]} c4 {[%emt 0:00:56]} 41. Rf6+ {[%emt 0:34:16]} Kd7 {[%emt 0:30:50]} 42. Nxe5+ {[%emt 0:00:27]} Ke8 {[%emt 0:01:04]} 43. Rxa6 {[%emt 0:00:26]} Rb8 {[%emt 0:00:14]} 44. Rxh6 {[%emt 0:00:50]} 1-0

[Event "Seniors-LEM-50 Sachsen-Anhalt 2024"]
[Site "Magdeburg"]
[Date "2024.07.07"]
[Round "7.15"]
[White "Meffert, Claudia"]
[Black "Scheunemann, Uwe"]
[Result "1/2-1/2"]
[ECO "A18"]
[WhiteElo "1811"]
[BlackElo "1764"]
[Annotator "NA RC"]
[PlyCount "55"]
[EventDate "2024.06.25"]
[EventType "swiss"]
[EventCountry "GER"]
[SourceTitle "playchess.com"]
[Source "ChessBase"]
[SourceQuality "1"]
[TimeControl "40/5400+30:1800+30"]

1. d4 {[%emt 0:00:02]} Nf6 {[%emt 0:01:03]} 2. c4 {[%emt 0:00:07]} e6 {[%emt 0:00:30]} 3. Nc3 {[%emt 0:00:20]} c6 {[%emt 0:01:07]} 4. e4 {[%emt 0:05:27]} d6 {[%emt 0:02:15]} 5. Bd3 {[%emt 0:03:07]} e5 {[%emt 0:01:48]} 6. d5 {[%emt 0:02:50]} Be7 {[%emt 0:01:11]} 7. Nge2 {[%emt 0:03:15]} O-O {[%emt 0:05:21]} 8. O-O {[%emt 0:02:19]} Nbd7 {[%emt 0:05:27]} 9. Ng3 {[%emt 0:04:58]} Re8 {[%emt 0:03:02]} 10. Nf5 {[%emt 0:07:13]} Bf8 {[%emt 0:03:04]} 11. Qf3 {[%emt 0:06:03]} Nc5 {[%emt 0:03:35]} 12. Bc2 {[%emt 0:03:37]} Bxf5 {[%emt 0:00:44]} 13. Qxf5 {[%emt 0:03:29]} Qc8 {[%emt 0:02:18]} 14. Qg5 {[%emt 0:07:24]} Qg4 {[%emt 0:02:32]} 15. Qxg4 {[%emt 0:03:13]} Nxg4 {[%emt 0:00:27]} 16. f3 {[%emt 0:00:46]} Nf6 {[%emt 0:00:09]} 17. Be3 {[%emt 0:02:48]} Ncd7 {[%emt 0:02:22]} 18. Rfd1 {[%emt 0:04:30]} c5 {[%emt 0:02:42]} 19. h3 {[%emt 0:05:55]} a6 {[%emt 0:00:11]} 20. Ne2 {[%emt 0:00:34]} b5 {[%emt 0:01:40]} 21. b3 {[%emt 0:01:02]} Nb6 {[%emt 0:01:14]} 22. cxb5 {[%emt 0:02:26]} axb5 {[%emt 0:00:08]} 23. Nc3 {[%emt 0:02:06]} b4 {[%emt 0:01:12]} 24. Nb5 {[%emt 0:00:50]} Rec8 {[%emt 0:00:34]} 25. a4 {[%emt 0:03:38]} bxa3 {[%emt 0:58:24]} 26. Nxa3 {[%emt 0:25:31]} Nfd7 {[%emt 0:00:00]} 27. Bd3 {[%emt 0:00:00]} Be7 {[%emt 0:00:00]} 28. Rdc1 {[%emt 0:01:00]} 1/2-1/2

[Event "Seniors-LEM-50 Sachsen-Anhalt 2024"]
[Site "Magdeburg"]
[Date "2024.07.07"]
[Round "7.16"]
[White "Schomann, Michael"]
[Black "Remstedt, Ute"]
[Result "1-0"]
[ECO "E33"]
[WhiteElo "1777"]
[BlackElo "1710"]
[Annotator "NA RC"]
[PlyCount "53"]
[EventDate "2024.06.25"]
[EventType "swiss"]
[EventCountry "GER"]
[SourceTitle "playchess.com"]
[Source "ChessBase"]
[SourceQuality "1"]
[TimeControl "40/5400+30:1800+30"]

1. d4 {[%emt 0:00:04]} d5 {[%emt 0:00:13]} 2. c4 {[%emt 0:00:04]} e6 {[%emt 0:01:50]} 3. Nc3 {[%emt 0:00:05]} Bb4 {[%emt 0:01:15]} 4. Bd2 {[%emt 0:01:30]} Nc6 {[%emt 0:00:31]} 5. e3 {[%emt 0:00:24]} Nf6 {[%emt 0:02:54]} 6. Nf3 {[%emt 0:02:45]} O-O {[%emt 0:01:15]} 7. Bd3 {[%emt 0:00:51]} a6 {[%emt 0:06:20]} 8. O-O {[%emt 0:00:17]} Re8 {[%emt 0:06:58]} 9. Qc2 {[%emt 0:01:57]} h6 {[%emt 0:04:37]} 10. Rac1 {[%emt 0:03:22]} Bxc3 {[%emt 0:05:55]} 11. Bxc3 {[%emt 0:00:45]} b6 {[%emt 0:04:11]} 12. h3 {[%emt 0:05:13]} Bb7 {[%emt 0:02:33]} 13. Ne5 {[%emt 0:05:32]} Nxe5 {[%emt 0:03:19]} 14. dxe5 {[%emt 0:00:51]} Nd7 {[%emt 0:00:32]} 15. Rcd1 {[%emt 0:08:13]} Qe7 {[%emt 0:07:42]} 16. b4 {[%emt 0:04:27]} Rac8 {[%emt 0:05:03]} 17. f4 {[%emt 0:03:00]} c5 {[%emt 0:01:23]} 18. a3 {[%emt 0:03:42]} Red8 {[%emt 0:05:36]} 19. Be2 {[%emt 0:04:11]} Nf8 {[%emt 0:03:52]} 20. Qb2 {[%emt 0:02:26]} Qc7 {[%emt 0:02:01]} 21. bxc5 {[%emt 0:03:31]} Qxc5 {[%emt 0:00:47]} 22. Bd4 {[%emt 0:00:29]} Qc6 {[%emt 0:02:35]} 23. Bxb6 {[%emt 0:03:25]} Rd7 {[%emt 0:02:21]} 24. cxd5 {[%emt 0:03:11]} Rxd5 {[%emt 0:00:11]} 25. Bf3 {[%emt 0:01:34]} Nd7 {[%emt 0:04:30]} 26. Bxd5 {[%emt 0:00:45]} exd5 {[%emt 0:00:02]} 27. Bd4 {[%emt 0:41:26]} 1-0